bitfinex/quotes_ETHUSD_20220202
["timestamp","ask_amount","ask_price","bid_price","bid_amount"]
[1643811491085,0.22797665,2774.1,2773.8,0.00146119]
[1643811491283,0.22797665,2774.1,2773.9,0.00451802]
[1643811492085,2.17045452,2774.1,2773.9,0.00451802]
[1643811492283,2.17045452,2774.1,2773.8,0.00146119]
[1643811492284,2.18115584,2774.1,2773.8,0.00146119]
[1643811492484,2.19309292,2774.1,2773.9,0.00451802]
[1643811492684,2.01982378,2774.0,2773.9,0.00451802]
[1643811493485,2.01982378,2774.0,2773.5,0.00146119]
[1643811493733,1.20137,2773.9,2773.8,0.00451807]
[1643811494737,1.20137,2773.9,2773.5,0.00146119]
[1643811494938,1.20137,2773.9,2773.7,0.00451816]
[1643811494939,0.90144,2773.8,2773.7,0.00451816]
[1643811495837,0.90144,2773.8,2773.3,0.01807537]
[1643811496035,0.90136,2773.7,2773.2,0.00146119]
[1643811496834,0.19386403,2773.3,2773.2,4.50146119]
[1643811497034,0.19386403,2773.3,2773.2,0.00146119]
[1643811497235,0.19386403,2773.3,2773.1,1.08609219]
[1643811498085,0.3,2773.6,2773.1,1.08609219]
[1643811498286,0.3,2773.6,2773.1,1.08304119]
[1643811498491,0.3,2773.6,2773.1,1.08755342]
[1643811499291,0.20785246,2773.4,2773.1,1.08755342]
[1643811499491,0.20785246,2773.4,2773.1,1.08304119]
[1643811499692,0.20785246,2773.4,2773.2,0.00451209]
[1643811500692,0.20785246,2773.4,2773.1,1.08304119]
[1643811500894,0.20785246,2773.4,2773.2,0.00451214]
[1643811501729,0.3,2773.6,2773.2,0.00451214]
[1643811501929,0.90128,2773.9,2773.2,1.80399119]
[1643811502127,0.90128,2773.9,2773.2,2.10850333]
[1643811502330,0.90128,2773.9,2773.2,3.10850333]
[1643811502631,0.90128,2773.9,2773.3,0.00146119]
[1643811502833,0.20043625,2773.6,2773.3,0.00146119]
[1643811503034,0.20043625,2773.6,2773.4,0.9012455]
[1643811503235,0.20043625,2773.6,2773.4,1.8024855]
[1643811503437,0.90128,2773.9,2773.4,1.8024855]
[1643811503636,0.90128,2773.9,2773.5,0.00146119]
[1643811504434,0.23870573,2773.7,2773.5,0.00146119]
[1643811504636,0.3,2773.8,2773.6,3.75261664]
[1643811504837,0.90128,2773.9,2773.6,3.75407783]
[1643811505084,0.1802,2774.1,2773.7,1.0]
[1643811505283,0.1802,2774.4,2773.8,0.519]
[1643811505481,1.94933586,2775.1,2773.8,0.819]
[1643811505482,0.1802,2774.5,2773.8,0.819]
[1643811505683,0.24427261,2774.6,2773.8,0.819]
[1643811505983,0.1802,2774.5,2773.9,1.7247881]
[1643811506182,0.1802,2774.5,2773.9,1.72624929]
[1643811506383,0.1802,2774.5,2774.0,0.819]
[1643811506588,0.24427261,2774.6,2774.1,0.90101]
[1643811506786,0.24427261,2774.6,2774.1,1.42147119]
[1643811506984,0.24427261,2774.6,2774.1,1.42562479]
[1643811507585,0.24427261,2774.6,2774.1,2.32664189]
[1643811507986,0.24427261,2774.6,2774.1,0.90247119]
[1643811507987,0.42447261,2774.6,2774.1,0.90247119]
[1643811508187,0.42447261,2774.6,2774.2,0.00415351]
[1643811508388,0.42447261,2774.6,2774.2,0.0056147]
[1643811508389,1.94148936,2774.5,2774.2,0.0056147]
[1643811508733,0.90118,2774.3,2773.8,1.81875653]
[1643811508937,0.23291706,2774.0,2773.9,0.00147418]
[1643811509535,0.23291706,2774.0,2773.8,1.80214]
[1643811509736,0.18291706,2774.0,2773.8,1.80214]
[1643811510137,0.18291706,2774.0,2773.7,1.30147418]
[1643811510337,0.90121,2774.2,2773.7,1.30147418]
[1643811511337,0.24769264,2773.9,2773.7,0.00147418]
[1643811511540,2.12898667,2773.8,2773.7,0.00147418]
[1643811511742,0.24769264,2773.9,2773.5,0.00147418]
[1643811511743,0.54769264,2773.9,2773.5,0.00147418]
[1643811512339,0.74549686,2773.8,2773.5,0.00147418]
[1643811512585,1.04549686,2773.8,2773.5,0.00147418]
[1643811513086,1.04549686,2773.8,2773.5,0.00599252]
[1643811513284,0.3,2773.8,2773.5,0.00599252]
[1643811513483,0.24769264,2773.9,2773.5,0.00599252]
[1643811513889,0.24769264,2773.9,2773.5,0.00147418]
[1643811514087,0.90132,2773.8,2773.5,0.00147418]
[1643811514290,0.90132,2773.8,2773.6,0.00451829]
[1643811514889,0.3,2773.7,2773.6,0.00451829]
[1643811515087,0.3,2773.7,2773.5,0.00147418]
[1643811515287,0.24303402,2773.4,2773.3,0.18167418]
[1643811515487,1.20132,2773.7,2773.3,0.18167418]
[1643811515687,0.3,2773.7,2773.3,1.08293418]
[1643811515887,2.58962698,2774.3,2773.3,2.08293418]
[1643811515888,4.39201698,2774.3,2773.3,2.08293418]
[1643811516088,4.69201698,2774.3,2773.3,2.08293418]
[1643811516533,4.69201698,2774.3,2773.7,0.0045182]
[1643811516736,0.80791398,2774.0,2773.7,0.0045182]
[1643811516940,3.83936253,2773.9,2773.7,0.0045182]
[1643811517134,2.39517871,2773.8,2773.7,0.0045182]
[1643811517535,0.2382589,2773.7,2773.3,0.00147418]
[1643811517734,0.2382589,2773.7,2773.6,0.00451824]
[1643811517934,2.21459836,2773.7,2773.6,0.00451824]
[1643811518137,0.2382589,2773.7,2773.6,0.00451824]
[1643811518435,0.90133,2773.8,2773.6,0.00451824]
[1643811518636,1.80237,2774.3,2773.5,1.80380418]
[1643811518843,3.14185823,2774.2,2773.5,1.80380418]
[1643811519051,3.14185823,2774.2,2773.6,0.00451829]
[1643811519052,1.0,2773.8,2773.6,0.00451829]
[1643811519243,8.5104,2773.7,2773.6,0.00451829]
[1643811519640,6.5104,2773.7,2773.6,0.00451829]
[1643811519839,8.18006555,2773.7,2773.1,0.01807587]
[1643811520083,1.80329,2773.5,2772.1,0.1802]
[1643811520389,0.01790203,2773.3,2772.1,0.1802]
[1643811520585,0.90178,2773.0,2772.1,0.1802]
[1643811520785,0.3,2772.9,2772.1,0.1802]
[1643811520986,2.10354,2772.9,2772.1,0.1802]
[1643811521187,0.69641954,2772.7,2772.1,0.1802]
[1643811521385,0.2364607,2772.3,2772.1,0.1802]
[1643811521590,1.1382607,2772.3,2771.9,0.00981121]
[1643811521785,1.4382607,2772.3,2771.9,0.00981121]
[1643811522387,0.22762939,2771.7,2771.6,0.1802]
[1643811522590,0.90195,2772.1,2771.5,0.00981262]
[1643811522791,0.90195,2771.9,2770.7,2.30377327]
[1643811522992,0.32020742,2771.8,2770.7,2.30377327]
[1643811523187,0.32020742,2771.8,2770.8,0.1804]
[1643811523589,0.94047658,2771.5,2770.8,0.1804]
[1643811523846,1.24047658,2771.5,2770.8,0.1804]
[1643811524045,1.20212,2771.5,2770.7,0.1804]
[1643811524245,1.20572592,2771.5,2770.7,0.1804]
[1643811524647,1.20212,2771.5,2770.7,0.1804]
[1643811525045,2.07587571,2771.5,2771.0,0.002443]
[1643811525445,4.09629204,2771.5,2771.0,0.002443]
[1643811526052,4.09629204,2771.5,2770.0,2.05429]
[1643811526053,2.70684,2771.2,2770.0,2.05429]
[1643811526251,2.67338879,2771.1,2770.7,0.00977303]
[1643811526449,0.94339317,2771.0,2770.7,0.00977303]
[1643811526646,0.1804,2770.9,2770.7,0.00977303]
[1643811526846,0.18683713,2770.9,2770.7,0.00977303]
[1643811527250,0.19287949,2770.4,2770.1,0.00147436]
[1643811527488,0.19287949,2770.4,2770.2,0.01743439]
[1643811528488,0.19287949,2770.4,2770.1,0.00147436]
[1643811528489,1.20245,2770.7,2770.1,0.00147436]
[1643811528688,0.1804,2770.6,2770.2,0.00434262]
[1643811529694,0.24230382,2770.4,2770.1,0.00147436]
[1643811529898,1.20245,2770.7,2770.3,0.00434253]
[1643811530294,0.90245,2770.7,2770.3,0.00434253]
[1643811530493,0.1804,2770.6,2770.3,0.00434253]
[1643811530693,1.80497,2770.5,2770.1,0.00147436]
[1643811531330,1.80497,2770.5,2770.0,0.25]
[1643811531536,0.90245,2770.7,2770.0,0.25]
[1643811531731,1.38285,2770.7,2770.0,0.25]
[1643811531934,0.1804,2770.9,2770.1,1.94571428]
[1643811532138,0.1804,2770.9,2769.3,6.00928063]
[1643811532140,10.75,2770.8,2768.1,4.94090986]
[1643811532334,10.75,2770.8,2767.6,8.12674652]
[1643811532335,1.0,2768.2,2767.6,0.34351138]
[1643811532538,1.0,2768.2,2766.6,4.59874866]
[1643811532539,7.0,2767.7,2766.6,4.59874866]
[1643811532736,7.0,2767.7,2764.5,14.8723742]
[1643811532737,7.0,2766.7,2764.5,14.8723742]
[1643811532933,7.0,2766.7,2763.0,1.22584155]
[1643811532934,7.0,2765.8,2764.6,5.8459]
[1643811533136,2.39406951,2765.7,2764.6,0.06593712]
[1643811533336,2.39406951,2765.7,2763.0,0.127056]
[1643811533337,6.486,2764.7,2763.4,0.1]
[1643811533535,6.486,2764.7,2763.7,0.2132944]
[1643811533536,6.486,2764.6,2763.7,0.2132944]
[1643811533737,2.0,2764.5,2763.7,0.1001]
[1643811533938,0.85910356,2764.3,2763.9,0.1]
[1643811534138,0.85910356,2764.3,2763.7,0.1001]
[1643811534139,1.0714,2764.2,2763.8,0.00146797]
[1643811534341,1.3714,2764.2,2763.8,0.00146797]
[1643811534541,0.519,2764.2,2763.8,0.89679422]
[1643811534740,0.1807,2764.3,2763.9,0.00254315]
[1643811534992,0.91096122,2764.6,2763.9,0.00254315]
[1643811535194,0.00650122,2764.6,2763.9,0.00254315]
[1643811535389,0.00364593,2765.0,2763.9,0.00254315]
[1643811535589,0.00364593,2765.0,2763.4,0.04832716]
[1643811535590,0.00364593,2765.0,2764.0,0.519]
[1643811535790,0.00364593,2765.0,2764.6,0.83613099]
[1643811536093,1.085,2765.3,2764.1,0.00254395]
[1643811536094,0.1807,2765.3,2764.1,0.00254395]
[1643811536291,1.1807,2765.3,2764.1,0.00254395]
[1643811536490,0.66113,2765.4,2764.1,0.00254395]
[1643811536692,0.66113,2765.4,2764.2,0.7446894]
[1643811536693,2.0,2765.4,2764.2,0.7446894]
[1643811536992,0.13819997,2765.8,2765.4,0.19806465]
[1643811536993,2.1807,2765.7,2765.4,0.19806465]
[1643811537192,0.13819997,2765.8,2765.4,0.19806465]
[1643811537394,1.63345,2765.8,2765.4,0.19806465]
[1643811537590,1.63345,2765.8,2765.5,0.21356542]
[1643811537794,1.63345,2765.8,2765.2,0.19394146]
[1643811537992,1.0714,2765.9,2765.3,0.76537752]
[1643811538192,1.0714,2765.9,2765.8,0.22244578]
[1643811538492,0.01231734,2766.5,2765.8,1.04102072]
[1643811538752,0.18043,2766.9,2765.8,1.04102072]
[1643811538753,0.1807,2766.9,2766.3,0.24173394]
[1643811538954,2.45434802,2767.1,2766.3,0.24173394]
[1643811538955,5e-05,2766.4,2766.3,0.24173394]
[1643811539158,0.1807,2767.7,2766.3,5.863]
[1643811539354,0.15081844,2767.7,2766.3,5.863]
[1643811539552,0.15081844,2767.7,2766.3,0.434]
[1643811539553,0.00451524,2766.5,2766.3,0.434]
[1643811540254,0.00451524,2766.5,2766.3,0.69285955]
[1643811540456,0.00451524,2766.5,2766.4,0.9162471]
[1643811540652,0.0045152,2766.5,2766.3,0.434]
[1643811541655,0.01215708,2767.1,2766.4,0.26716034]
[1643811541854,0.01215708,2767.1,2766.7,0.75506428]
[1643811542516,1.27533017,2767.1,2766.7,0.75506428]
[1643811542714,1.26317309,2767.1,2766.9,0.2334076]
[1643811543221,1.26317309,2767.1,2766.9,0.434]
[1643811543223,0.00451475,2767.0,2766.9,0.434]
[1643811543514,1.26768784,2767.0,2766.9,0.434]
[1643811544121,1.26317309,2767.0,2766.9,0.434]
[1643811544619,1.26317309,2767.0,2765.8,2.152]
[1643811544821,1.26317309,2767.0,2765.8,2.452]
[1643811545020,1.26317309,2767.0,2766.3,0.8108978]
[1643811545219,1.26317309,2767.0,2766.4,0.434]
[1643811545620,0.0045152,2766.5,2766.4,0.734]
[1643811545824,0.0045152,2766.5,2766.4,0.434]
[1643811546022,1.26768829,2766.5,2766.4,0.434]
[1643811546246,1.26768829,2766.5,2766.4,3.534]
[1643811546443,1.26317309,2766.5,2766.4,0.434]
[1643811546640,1.26317309,2766.5,2766.4,0.98546428]
[1643811547847,1.26317309,2766.5,2766.4,1.98546428]
[1643811548450,1.26317309,2766.5,2766.4,0.68546428]
[1643811549651,0.1807,2767.4,2766.5,6.15]
[1643811549852,0.15034991,2767.7,2766.6,0.434]
[1643811549853,0.1807,2767.6,2766.6,0.434]
[1643811550087,0.1807,2767.6,2766.6,1.734]
[1643811550287,0.1807,2767.6,2766.7,0.0014667]
[1643811550688,0.1806,2767.8,2766.8,0.434]
[1643811550886,0.1806,2767.8,2767.3,0.20867052]
[1643811551286,0.1806,2767.8,2767.4,0.434]
[1643811551585,0.19322197,2768.3,2767.8,0.20846937]
[1643811551586,0.1806,2768.2,2767.8,0.20846937]
[1643811551789,0.1806,2768.2,2767.4,0.0014667]
[1643811551790,0.36103,2768.1,2767.4,0.0014667]
[1643811551990,0.36103,2768.1,2766.6,1.1961]
[1643811551991,4.7,2767.5,2766.7,0.0014667]
[1643811552187,0.1806,2767.4,2766.7,0.4354667]
[1643811552387,0.01233913,2767.1,2766.4,1.13793028]
[1643811552589,0.01233913,2767.1,2766.5,0.434]
[1643811552788,0.01233913,2767.1,2766.7,0.22578642]
[1643811552989,0.01233913,2767.1,2766.7,0.65978642]
[1643811553192,0.01233913,2767.1,2766.7,0.6612532]
[1643811553392,0.18522124,2767.2,2766.7,0.6612532]
[1643811553393,0.00452124,2767.2,2766.7,0.6612532]
[1643811553596,0.37389504,2767.5,2766.7,0.6612532]
[1643811553843,0.37389504,2767.5,2766.8,0.00146678]
[1643811554046,0.00452133,2767.1,2766.8,0.00146678]
[1643811554246,0.00452133,2767.1,2766.7,0.65978642]
[1643811554646,0.00452133,2767.1,2766.7,0.434]
[1643811554851,2.12633964,2767.3,2766.7,0.434]
[1643811555046,0.19319504,2767.5,2766.7,0.434]
[1643811555047,0.00202614,2767.0,2766.7,0.434]
[1643811555947,0.00202614,2767.0,2766.4,1.13793028]
[1643811556153,0.1307,2766.9,2766.4,1.13793028]
[1643811556749,0.1307,2766.9,2766.4,2.0088169]
[1643811557050,0.1307,2766.9,2766.4,1.13793028]
[1643811557500,0.00454849,2766.8,2766.4,1.13793028]
[1643811558488,2.10756221,2767.2,2766.4,1.13793028]
[1643811558693,0.00454854,2766.7,2766.4,1.13793028]
[1643811559691,0.1807,2767.2,2766.4,1.13793028]
[1643811559893,0.00454858,2766.7,2766.4,1.13793028]
[1643811560495,0.00454858,2766.7,2766.3,6.173]
[1643811560496,0.00454858,2766.7,2766.3,1.1361]
[1643811560894,0.4807,2767.0,2766.3,1.1361]
[1643811561095,0.00454863,2766.6,2766.3,1.1361]
[1643811561356,0.00454863,2766.6,2765.6,4.6259]
[1643811561357,0.00454863,2766.6,2765.6,5.48018]
[1643811561358,0.1807,2766.5,2765.6,5.48018]
[1643811561548,0.1807,2766.5,2765.6,1.63895]
[1643811561549,0.18043,2766.4,2765.6,1.63895]
[1643811561748,0.18043,2766.4,2765.3,1.1774]
[1643811561749,0.1807,2766.3,2765.3,1.1774]
[1643811562249,0.00440645,2766.0,2765.9,0.25055755]
[1643811562648,0.00440645,2766.0,2765.3,1.1774]
[1643811563054,0.18043,2765.9,2765.3,1.1774]
[1643811563453,2.58232018,2765.9,2765.3,1.1774]
[1643811563653,2.58672676,2765.9,2765.3,1.38219498]
[1643811563858,1.0,2765.8,2765.3,1.38219498]
[1643811564055,1.18043,2765.8,2765.3,1.38219498]
[1643811564257,0.30440658,2765.9,2765.3,1.38219498]
[1643811564455,0.01220075,2766.1,2765.3,1.38219498]
[1643811564756,2.37277701,2766.5,2765.9,0.19809998]
[1643811564757,0.1807,2766.5,2765.9,0.19809998]
[1643811564986,0.18043,2766.4,2765.9,0.19809998]
[1643811565187,0.1807,2766.3,2765.5,1.6049]
[1643811565590,0.01254209,2766.8,2765.5,1.6049]
[1643811565591,0.1807,2766.7,2765.5,1.6049]
[1643811565988,0.00431657,2766.0,2765.5,1.6049]
[1643811566188,0.00431657,2766.0,2765.8,0.23033579]
[1643811566790,0.00431657,2766.0,2765.6,0.69227087]
[1643811566991,0.1807,2766.5,2765.6,0.69227087]
[1643811567192,0.00431657,2766.0,2765.6,0.69227087]
[1643811567790,0.00431657,2766.0,2765.7,0.20272639]
[1643811568196,0.1807,2766.4,2766.2,0.19211218]
[1643811568392,0.4807,2766.5,2766.2,0.19211218]
[1643811568591,0.1807,2766.7,2766.2,0.19211218]
[1643811568592,0.1807,2766.6,2766.2,0.19211218]
[1643811569264,0.1807,2766.6,2766.2,0.00146656]
[1643811569460,0.00414293,2766.5,2766.2,0.00146656]
[1643811569661,0.1807,2766.4,2766.2,0.00146656]
[1643811569860,0.1807,2766.4,2765.6,0.00146656]
[1643811570462,2.22182903,2766.4,2765.6,0.00146656]
[1643811570864,0.00414324,2766.1,2765.6,0.00146656]
[1643811571061,0.1807,2766.0,2765.6,0.00146656]
[1643811571264,0.1307,2766.0,2765.7,0.24792346]
[1643811571463,0.00414324,2766.1,2765.6,0.00146656]
[1643811571464,0.18490324,2766.1,2765.6,0.00146656]
[1643811571669,0.48076,2766.1,2765.6,0.00146656]
[1643811571865,2.1710204,2766.0,2765.6,0.00146656]
[1643811572063,0.01293274,2765.9,2765.6,0.00146656]
[1643811572264,0.01293274,2765.9,2765.3,0.71424637]
[1643811572265,3.75,2765.8,2765.3,0.71424637]
[1643811572503,2.0,2765.7,2764.8,4.4773]
[1643811572703,1.08211046,2765.6,2764.8,0.007]
[1643811572903,0.01234398,2765.3,2764.8,0.007]
[1643811573104,0.82704398,2765.3,2764.8,0.007]
[1643811573307,6.15,2765.1,2763.7,4.63579706]
[1643811573505,0.99999999,2764.9,2763.5,0.01679244]
[1643811573703,0.01229952,2764.7,2763.5,0.01679244]
[1643811573910,0.84413558,2764.4,2762.4,3.7053]
[1643811574106,0.84413558,2764.4,2762.9,0.85507]
[1643811574107,0.0125977,2763.6,2762.9,0.85507]
[1643811574321,0.0125977,2763.6,2763.0,1.64041]
[1643811574508,2.37456862,2764.3,2763.0,1.64041]
[1643811574708,2.18076,2764.2,2763.0,1.64041]
[1643811574908,0.1809,2764.1,2763.8,0.14837151]
[1643811575312,0.19380862,2764.3,2763.5,0.76034391]
[1643811575510,0.00700378,2764.4,2763.6,0.00146688]
[1643811576112,0.00700378,2764.4,2763.7,0.434]
[1643811576340,0.00700378,2764.4,2764.3,0.20541739]
[1643811576541,0.1807,2764.9,2764.3,0.20541739]
[1643811576946,0.1807,2764.9,2764.4,0.00146688]
[1643811577146,0.18076,2765.0,2764.3,0.20541739]
[1643811577347,0.1807,2764.8,2764.3,0.20541739]
[1643811577543,0.1807,2764.9,2763.9,0.434]
[1643811577946,0.00454416,2764.7,2763.9,0.434]
[1643811578142,0.18530416,2764.7,2763.9,0.434]
[1643811578543,0.00454416,2764.7,2764.0,0.77570088]
[1643811578953,0.1807,2765.2,2764.1,0.434]
[1643811579351,0.00454434,2764.5,2764.1,0.48445]
[1643811579750,0.00454434,2764.5,2764.2,0.25048994]
[1643811580194,0.01287714,2765.1,2764.3,0.434]
[1643811580396,0.01287714,2765.1,2764.5,0.89518115]
[1643811580598,0.01287714,2765.1,2764.3,0.434]
[1643811580999,1.71458387,2765.0,2764.3,0.434]
[1643811581196,1.71458387,2765.0,2763.7,1.18]
[1643811581197,2.05091277,2764.9,2763.7,1.18]
[1643811581406,0.1807,2764.8,2763.9,0.434]
[1643811581602,0.36146,2764.8,2763.9,0.434]
[1643811581796,0.1807,2764.9,2764.3,0.26815722]
[1643811582201,1.48076,2765.0,2764.3,0.26815722]
[1643811582408,0.48076,2765.0,2764.3,0.26815722]
[1643811582601,0.1807,2764.9,2764.3,0.26815722]
[1643811582800,0.1807,2764.9,2764.3,1.15017659]
[1643811583000,0.1807,2764.9,2764.3,0.70215722]
[1643811583200,0.1807,2764.9,2764.3,0.434]
[1643811583400,0.1807,2764.9,2763.9,0.434]
[1643811584257,0.1807,2764.9,2764.0,0.21802427]
[1643811585155,0.00455058,2764.6,2764.0,0.21802427]
[1643811585358,0.00455058,2764.6,2764.5,3.39015875]
[1643811585559,0.00455058,2764.6,2764.5,0.24015875]
[1643811585958,0.00455058,2764.6,2764.5,0.67415875]
[1643811586159,0.1807,2765.3,2764.5,0.67415875]
[1643811586358,0.1807,2765.3,2765.1,0.23454918]
[1643811586558,0.1807,2765.3,2764.7,0.68843663]
[1643811586759,0.1807,2765.3,2764.5,0.434]
[1643811587592,2.29397053,2765.4,2764.6,0.23827924]
[1643811587593,0.00208134,2765.0,2764.6,0.23827924]
[1643811587791,0.00208134,2765.0,2764.7,0.434]
[1643811587990,0.00208134,2765.0,2764.7,7.1598]
[1643811588209,0.00208134,2765.0,2764.9,6.20045]
[1643811588388,0.00208134,2765.0,2764.9,7.63445]
[1643811588592,2.0,2766.3,2765.0,2.152]
[1643811588593,2.1807,2766.3,2765.0,2.152]
[1643811588793,0.85163,2766.2,2766.0,0.24152108]
[1643811589693,0.85163,2766.2,2766.1,0.434]
[1643811590096,0.01202866,2767.1,2766.2,6.15]
[1643811590097,0.01646326,2766.7,2766.2,6.15]
[1643811590293,0.01646326,2766.7,2766.3,3.11600207]
[1643811590494,0.01646326,2766.7,2766.3,0.64793638]
[1643811590693,0.01646326,2766.7,2766.3,0.64940199]
[1643811591092,0.1807,2767.3,2766.3,0.64940199]
[1643811591342,1.53304077,2767.2,2766.3,0.43546561]
[1643811591648,1.03233,2767.3,2766.3,0.43546561]
[1643811591842,1.03233,2767.3,2766.4,0.87342537]
[1643811592043,1.03233,2767.3,2766.5,0.434]
[1643811592246,1.96576402,2767.2,2766.5,0.434]
[1643811592444,1.96576402,2767.2,2766.3,0.20392252]
[1643811592646,1.96576402,2767.2,2766.4,0.434]
[1643811592647,2.81739402,2767.2,2766.4,0.434]
[1643811592845,0.1807,2767.1,2766.4,0.434]
[1643811593044,1.16436017,2767.0,2766.3,0.00146561]
[1643811593244,0.1807,2766.9,2766.3,0.00146561]
[1643811593446,1.16436017,2767.0,2766.3,0.00146561]
[1643811593855,1.16436017,2767.0,2766.3,0.43546561]
[1643811594053,1.16436017,2767.0,2766.9,0.2312232]
[1643811594252,1.16436017,2767.0,2766.3,0.43546561]
[1643811594851,0.00433321,2766.8,2766.3,0.43546561]
[1643811595301,0.00433321,2766.8,2766.4,0.24715869]
[1643811595495,0.00433321,2766.8,2766.5,0.434]
[1643811595695,0.1807,2767.3,2766.5,0.434]
[1643811595895,0.1807,2767.3,2767.0,0.19344335]
[1643811596098,0.01684112,2767.2,2767.0,0.19344335]
[1643811596497,0.01684112,2767.2,2767.0,0.62744335]
[1643811597098,0.00207921,2767.2,2767.0,0.62744335]
[1643811597498,1.0714,2767.4,2767.0,0.62744335]
[1643811597499,0.97347921,2767.4,2767.0,0.62744335]
[1643811598000,0.1806,2767.6,2767.0,0.62744335]
[1643811598199,1.53297663,2767.5,2767.0,0.62744335]
[1643811598503,1.53297663,2767.5,2766.3,1.189]
[1643811598754,0.01214862,2767.1,2766.3,1.189]
[1643811598955,1.89443663,2767.0,2766.0,0.00146561]
[1643811599154,1.53297663,2766.9,2766.0,0.00146561]
[1643811599355,0.36146,2766.8,2766.0,0.00146561]
[1643811599556,0.36146,2766.8,2766.4,0.25595087]
[1643811599755,0.1807,2766.9,2766.4,0.25595087]
[1643811600158,0.1807,2767.1,2766.4,0.25595087]
[1643811600359,0.36146,2767.2,2766.4,0.25595087]
[1643811600558,1.53304481,2767.1,2766.4,0.25595087]
[1643811600757,0.1807,2767.0,2766.9,0.21371098]
[1643811600957,0.1807,2767.0,2766.1,1.3260672]
[1643811601255,0.36600257,2767.3,2766.1,1.3260672]
[1643811601456,1.97527047,2767.2,2766.1,1.3260672]
[1643811601656,1.71378603,2767.1,2766.1,1.3260672]
[1643811601959,3.55556587,2767.0,2766.3,0.20377024]
[1643811602158,0.1807,2766.9,2765.9,1.158]
[1643811602798,1.53321145,2766.8,2765.9,1.158]
[1643811603001,2.31241685,2766.7,2765.9,1.158]
[1643811603198,2.31241685,2766.7,2766.0,0.25382227]
[1643811603415,2.31241685,2766.7,2765.8,0.00146561]
[1643811603416,0.1807,2766.6,2765.8,0.00146561]
[1643811603599,0.1807,2766.6,2764.6,0.01818746]
[1643811603600,0.99999999,2765.9,2764.6,0.01818746]
[1643811603805,0.99999999,2765.7,2764.6,0.01818746]
[1643811604107,0.01255247,2764.7,2764.6,0.01818746]
[1643811604303,0.01255247,2764.7,2764.0,4.0165]
[1643811604501,0.01255247,2764.7,2764.5,0.20542481]
[1643811605703,0.1807,2765.1,2764.5,0.20542481]
[1643811605902,0.19275912,2765.1,2764.5,0.20542481]
[1643811607143,0.19275912,2765.1,2764.0,4.0165]
[1643811607144,2.25726199,2765.1,2764.0,4.0165]
[1643811607342,2.55726199,2765.1,2764.0,4.3165]
[1643811607740,2.25726199,2765.1,2764.0,4.0165]
[1643811608145,2.25726199,2765.1,2764.4,0.00453955]
[1643811608345,2.55726199,2765.1,2764.4,0.00453955]
[1643811608550,1.0852,2765.0,2764.4,0.00453955]
[1643811608743,2.9147,2764.9,2764.4,0.00453955]
[1643811608946,0.18076,2764.8,2764.4,0.00453955]
[1643811609146,0.1807,2764.7,2763.7,2.344]
[1643811609347,1.98991,2764.7,2764.6,0.00453942]
[1643811609546,7.57076,2764.7,2764.6,0.00453942]
[1643811609747,8.57076,2764.7,2764.6,3.942e-05]
[1643811609989,9.01707278,2764.7,2764.6,3.942e-05]
[1643811610188,9.01707278,2764.7,2763.2,1.2309]
[1643811610189,10.16027277,2764.7,2763.2,1.2309]
[1643811610388,4.80956,2764.6,2763.2,1.2309]
[1643811610593,0.6149,2764.5,2763.2,1.2309]
[1643811610793,0.90471,2764.2,2763.2,1.2309]
[1643811610988,0.90471,2764.2,2763.3,0.22525725]
[1643811610989,3.0197913,2764.1,2763.3,0.22525725]
[1643811611189,3.0197913,2764.1,2763.2,1.2309]
[1643811611390,1.19338742,2764.0,2762.7,4.3139]
[1643811611592,7.14999999,2763.7,2761.5,1.14826475]
[1643811611791,7.14999999,2763.7,2761.5,1.04970697]
[1643811611792,0.01294903,2762.8,2761.5,1.04970697]
[1643811611990,0.87554903,2762.8,2761.5,1.04970697]
[1643811612390,2.87554903,2762.8,2761.9,0.8431545]
[1643811612589,0.87554903,2762.8,2761.5,1.04970697]
[1643811612788,3.05644903,2762.8,2761.5,1.04970697]
[1643811612988,0.87554903,2762.8,2762.0,0.00454169]
[1643811613188,0.87554903,2762.8,2762.5,0.19065885]
[1643811613394,0.87554903,2762.8,2762.0,0.00454169]
[1643811613590,0.01294903,2762.8,2762.0,0.00454169]
[1643811613847,0.01294903,2762.8,2761.9,0.007]
[1643811614045,0.01294903,2762.8,2762.4,0.88162875]
[1643811614449,0.01294903,2762.8,2762.7,0.26292152]
[1643811614644,0.01294903,2762.8,2762.4,0.88162875]
[1643811614846,0.01294903,2762.8,2761.9,0.007]
[1643811615650,0.1809,2763.1,2762.0,0.19325829]
[1643811615850,0.1809,2763.7,2763.6,0.19643871]
[1643811616054,0.1809,2764.1,2762.6,0.434]
[1643811616350,0.01285328,2764.2,2762.6,0.734]
[1643811616351,0.19375328,2764.2,2762.6,0.734]
[1643811616546,0.1809,2764.5,2762.6,2.8471944]
[1643811616748,0.1809,2764.5,2762.6,4.9991944]
[1643811617051,0.36175,2764.6,2762.8,1.0]
[1643811617248,0.36175,2764.6,2763.7,0.26726072]
[1643811617508,0.13819997,2764.7,2763.7,0.26726072]
[1643811617701,0.13819997,2764.7,2763.7,0.434]
[1643811618202,0.1807,2764.8,2763.7,0.734]
[1643811618203,0.1808,2764.8,2763.7,0.734]
[1643811618502,0.55243172,2765.4,2764.1,0.85419931]
[1643811618503,0.1807,2765.3,2764.1,0.85419931]
[1643811618704,0.18083,2765.0,2764.4,0.25768978]
[1643811618905,0.1807,2764.9,2764.4,0.25768978]
[1643811619106,0.1807,2765.3,2764.4,0.25768978]
[1643811619307,0.1807,2765.4,2765.0,0.26261271]
[1643811619806,0.1807,2765.5,2764.8,1.32023752]
[1643811620006,0.1807,2765.5,2764.8,0.434]
[1643811620608,0.18083,2765.4,2764.8,0.434]
[1643811620809,0.1807,2765.3,2764.8,0.434]
[1643811621009,0.1807,2765.3,2764.6,4.3259]
[1643811621010,2.22564382,2765.3,2764.6,4.3259]
[1643811621246,0.1807,2765.3,2764.4,0.24035651]
[1643811621640,2.2205724,2765.3,2764.4,0.67435651]
[1643811621841,2.14313674,2765.3,2764.4,0.67435651]
[1643811622042,0.1807,2765.3,2764.4,0.67435651]
[1643811622241,1.0714,2765.2,2764.4,0.67435651]
[1643811622445,1.0714,2765.2,2764.9,0.2510249]
[1643811622446,1.07593738,2765.2,2764.9,0.2510249]